fUST/lending_fUST_20250409
["ID","MTS","AMOUNT","RATE_DAILY","PERIOD"]
[357572664,1744182646995,-500.0,0.00019178,2]
[357572666,1744182647005,-500.0,0.00019178,2]
[357572668,1744182647014,-500.0,0.00019178,2]
[357572670,1744182647023,-500.0,0.00019178,2]
[357572672,1744182647035,-500.0,0.00019178,2]
[357572674,1744182647045,-500.0,0.00019178,2]
[357572676,1744182647054,-500.0,0.00019178,2]
[357572678,1744182647064,-981.11,0.00019178,2]
[357572680,1744182647074,-500.0,0.00019178,2]
[357572682,1744182647083,-500.0,0.00019178,2]
[357572684,1744182647092,-500.0,0.00019178,2]
[357572686,1744182647101,-458.35474177,0.00019178,2]
[357572688,1744182647111,-503.09688353,0.00019178,2]
[357572690,1744182647122,-500.0,0.00019178,2]
[357572692,1744182647137,-500.0,0.00019178,2]
[357572694,1744182647147,-500.0,0.00019178,2]
[357572696,1744182647157,-280.00141954,0.00019178,2]
[357572697,1744182647166,-872.37,0.00019178,2]
[357572699,1744182647177,-509.11202699,0.00019178,2]
[357572701,1744182647187,-500.0,0.00019178,2]
[357572703,1744182647197,-551.20471365,0.00019178,2]
[357572705,1744182647206,-408.58528064,0.00019178,2]
[357572707,1744182647216,-535.86454314,0.00019178,2]
[357572709,1744182647227,-500.0,0.00019178,2]
[357572711,1744182647237,-501.82355885,0.00019178,2]
[357572713,1744182647247,-568.76,0.00019178,2]
[357572715,1744182647256,-500.0,0.00019178,2]
[357572717,1744182647266,-505.61859523,0.00019178,2]
[357572719,1744182647275,-519.98723771,0.00019178,2]
[357572721,1744182647287,-500.0,0.00019178,2]
[357572723,1744182647297,-500.0,0.00019178,2]
[357572725,1744182647307,-506.4494025,0.00019178,2]
[357572727,1744182647317,-500.0,0.00019178,2]
[357572729,1744182647326,-500.0,0.00019178,2]
[357572731,1744182647336,-495.03591003,0.00019178,2]
[357572733,1744182647345,-500.0,0.00019178,2]
[357572735,1744182647354,-500.0,0.00019178,2]
[357572737,1744182647363,-500.0,0.00019178,2]
[357572739,1744182647373,-527.98624623,0.00019178,2]
[357572741,1744182647383,-523.83016493,0.00019178,2]
[357572743,1744182647392,-500.0,0.00019178,2]
[357572745,1744182647401,-500.0,0.00019178,2]
[357572747,1744182647411,-500.0,0.00019178,2]
[357572749,1744182647421,-500.0,0.00019178,2]
[357572751,1744182647430,-507.44159932,0.00019178,2]
[357572753,1744182647440,-500.0,0.00019178,2]
[357572754,1744182647450,-588.51797858,0.00019178,2]
[357572755,1744182647460,-500.0,0.00019178,2]
[357572756,1744182647472,-500.0,0.00019178,2]
[357572757,1744182647482,-2603.99,0.00019178,2]
[357572758,1744182647492,-623.79184689,0.00019178,2]
[357572759,1744182647502,-269.95979373,0.00019178,2]
[357572760,1744182647512,-500.0,0.00019178,2]
[357572761,1744182647522,-677.68,0.00019178,2]
[357572762,1744182647535,-846.18,0.00019178,2]
[357572763,1744182647549,-994.74,0.00019178,2]
[357572764,1744182647561,-500.0,0.00019178,2]
[357572765,1744182647570,-500.0,0.00019178,2]
[357572766,1744182647580,-207.68204829,0.00019178,2]
[357572767,1744182647628,-702.01795171,0.00019178,2]
[357572768,1744182647638,-500.0,0.00019178,2]
[357572769,1744182647745,-500.0,0.00019178,2]
[357572770,1744182647755,-345.81032537,0.00019178,2]
[357572771,1744182647764,-552.32473733,0.00019178,2]
[357572772,1744182647774,-344.89606527,0.00019178,2]
[357572773,1744182647787,-155.10393473,0.00019178,2]
[357572775,1744182647797,-1075.82,0.00019178,2]
[357572777,1744182647806,-500.0,0.00019178,2]
[357572778,1744182647815,-500.0,0.00019178,2]
[357572779,1744182647825,-500.0,0.00019178,2]
[357572780,1744182647834,-500.0,0.00019178,2]
[357572781,1744182647844,-500.0,0.00019178,2]
[357572782,1744182647854,-500.0,0.00019178,2]
[357572783,1744182647864,-500.0,0.00019178,2]
[357572784,1744182647874,-500.0,0.00019178,2]
[357572785,1744182647884,-915.32,0.00019178,2]
[357572786,1744182647893,-760.35,0.00019178,2]
[357572787,1744182647903,-500.0,0.00019178,2]
[357572788,1744182647913,-569.27387828,0.00019178,2]
[357572789,1744182647922,-614.36281832,0.00019178,2]
[357572790,1744182647932,-226.7139226,0.00019178,2]
[357572791,1744182648142,-280.47412296,0.00019178,2]
[357572792,1744182648151,-376.50272364,0.00019178,2]
[357572793,1744182648167,-183.94033321,0.00019178,2]
[357572794,1744182648176,-500.0,0.00019178,2]
[357572795,1744182648186,-500.0,0.00019178,2]
[357572796,1744182648196,-500.0,0.00019178,2]
[357572797,1744182648205,-500.0,0.00019178,2]
[357572798,1744182648215,-500.0,0.00019178,2]
[357572799,1744182648224,-500.0,0.00019178,2]
[357572800,1744182648234,-504.6078033,0.00019178,2]
[357572801,1744182648243,-500.0,0.00019178,2]
[357572802,1744182648253,-500.0,0.00019178,2]
[357572803,1744182648262,-512.25312612,0.00019178,2]
[357572804,1744182648271,-512.12618665,0.00019178,2]
[357572805,1744182648283,-500.0,0.00019178,2]
[357572806,1744182648292,-500.0,0.00019178,2]
[357572807,1744182648301,-500.0,0.00019178,2]
[357572808,1744182648311,-500.0,0.00019178,2]
[357572809,1744182648320,-500.0,0.00019178,2]
[357572810,1744182648330,-500.0,0.00019178,2]
[357572811,1744182648339,-500.0,0.00019178,2]
[357572812,1744182648350,-500.0,0.00019178,2]
[357572813,1744182648359,-992.03,0.00019178,2]
[357572814,1744182648368,-509.39306359,0.00019178,2]
[357572815,1744182648378,-500.0,0.00019178,2]
[357572816,1744182648387,-500.0,0.00019178,2]
[357572817,1744182648397,-232.1624628,0.00019178,2]
[357572818,1744182648406,-951.52,0.00019178,2]
[357572819,1744182648415,-158.30392535,0.00019178,2]
[357572820,1744182648425,-569.08049021,0.00019178,2]
[357572821,1744182648434,-300.0,0.00019178,2]
[357572822,1744182648443,-500.0,0.00019178,2]
[357572823,1744182648454,-500.0,0.00019178,2]
[357572824,1744182648467,-955.94,0.00019178,2]
[357572825,1744182648476,-500.0,0.00019178,2]
[357572826,1744182648486,-500.0,0.00019178,2]
[357572827,1744182648495,-500.0,0.00019178,2]
[357572828,1744182648506,-533.74843721,0.00019178,2]
[357572829,1744182648516,-500.0,0.00019178,2]
[357572830,1744182648525,-500.0,0.00019178,2]
[357572831,1744182648536,-500.0,0.00019178,2]
[357572832,1744182648546,-500.0,0.00019178,2]
[357572833,1744182648556,-500.0,0.00019178,2]
[357572834,1744182648566,-500.0,0.00019178,2]
[357572835,1744182648575,-516.09063068,0.00019178,2]
[357572836,1744182648584,-500.0,0.00019178,2]
[357572837,1744182648594,-500.0,0.00019178,2]
[357572838,1744182648603,-251.80354088,0.00019178,2]
[357572839,1744182773386,-155.0,0.00018113,2]
[357572842,1744183154164,-158.38842396,0.00017932,2]
[357572843,1744183342154,-198.11613066,0.0001782,2]
[357572859,1744183752909,-159.17044552,0.00017932,2]
[357572875,1744183832038,-13518.30653799,0.00017932,2]
[357572896,1744183839046,-507.21704602,0.00017932,2]
[357572897,1744183839086,-549.95,0.00017932,2]
[357572903,1744183840330,-387.6598,0.00017932,2]
[357572978,1744184084469,-171.3647575,0.00017932,2]
[357572984,1744184163687,-163.27446645,0.000179,2]
[357572985,1744184244764,-224.91477807,0.00017815,2]
[357572996,1744184739649,-155.8979497,0.00017,2]
[357572997,1744184739679,-70.4106643,0.00017545,2]
[357572998,1744184765785,-151.06293082,0.00017545,2]
[357573015,1744185032138,-290.56126888,0.00017545,2]
[357573016,1744185032148,-185.0,0.000178,2]
[357573017,1744185032157,-185.0,0.000178,2]
[357573018,1744185032167,-132.00995343,0.00017815,2]
[357573019,1744185032177,-86.72553355,0.000179,2]
[357573020,1744185032187,-64710.89948155,0.00017932,2]
[357573021,1744185032196,-160.0,0.00018,2]
[357573022,1744185032205,-1236.0434774,0.00018053,2]
[357573023,1744185032215,-159.416913,0.00018109,2]
[357573024,1744185032226,-500.0,0.00018973,2]
[357573025,1744185032235,-500.0,0.00018973,2]
[357573026,1744185032244,-500.0,0.00018973,2]
[357573027,1744185032255,-151.0,0.00018984,2]
[357573028,1744185032264,-300.0,0.00018991,2]
[357573029,1744185032273,-7432.19959909,0.00018992,2]
[357573030,1744185032285,-1265.41097771,0.00018992,2]
[357573031,1744185032294,-500.0,0.00018993,2]
[357573032,1744185032303,-500.0,0.00018993,2]
[357573033,1744185032312,-500.0,0.00018993,2]
[357573034,1744185032321,-500.0,0.00018993,2]
[357573035,1744185032330,-330.46059013,0.00018993,2]
[357573036,1744185032339,-500.0,0.00018993,2]
[357573037,1744185032348,-500.0,0.00018993,2]
[357573038,1744185032357,-500.0,0.00018993,2]
[357573039,1744185032479,-500.0,0.00018993,2]
[357573040,1744185032491,-164.97350521,0.00018993,2]
[357573041,1744185032501,-500.0,0.00018993,2]
[357573042,1744185032511,-500.0,0.00018993,2]
[357573043,1744185032522,-500.0,0.00018993,2]
[357573044,1744185032532,-458.90836784,0.00018993,2]
[357573045,1744185032542,-500.0,0.00018993,2]
[357573046,1744185032552,-522.71433236,0.00018993,2]
[357573047,1744185032562,-500.0,0.00018993,2]
[357573048,1744185032572,-500.0,0.00018993,2]
[357573049,1744185032582,-500.0,0.00018993,2]
[357573050,1744185032592,-500.0,0.00018993,2]
[357573051,1744185032601,-500.0,0.00018993,2]
[357573052,1744185032611,-500.0,0.00018993,2]
[357573053,1744185032621,-500.0,0.00018993,2]
[357573054,1744185032631,-500.0,0.00018993,2]
[357573055,1744185032640,-500.0,0.00018993,2]
[357573056,1744185032650,-500.0,0.00018993,2]
[357573057,1744185032660,-500.0,0.00018993,2]
[357573058,1744185032669,-500.0,0.00018993,2]
[357573059,1744185032679,-500.0,0.00018993,2]
[357573060,1744185032689,-500.0,0.00018993,2]
[357573061,1744185032699,-500.0,0.00018993,2]
[357573062,1744185032710,-500.0,0.00018993,2]
[357573063,1744185032720,-500.0,0.00018993,2]
[357573064,1744185032729,-500.0,0.00018993,2]
[357573065,1744185032739,-500.0,0.00018993,2]
[357573066,1744185032748,-500.0,0.00018993,2]
[357573067,1744185032758,-500.0,0.00018993,2]
[357573068,1744185032768,-500.0,0.00018993,2]
[357573069,1744185032778,-500.0,0.00018993,2]
[357573070,1744185032789,-500.0,0.00018993,2]
[357573071,1744185032798,-500.0,0.00018993,2]
[357573072,1744185032808,-500.0,0.00018993,2]
[357573073,1744185032818,-500.0,0.00018993,2]
[357573074,1744185032827,-500.0,0.00018993,2]
[357573075,1744185032836,-500.0,0.00018993,2]
[357573076,1744185032846,-500.0,0.00018993,2]
[357573077,1744185032855,-500.0,0.00018993,2]
[357573078,1744185032865,-500.0,0.00018993,2]
[357573079,1744185032874,-500.0,0.00018993,2]
[357573080,1744185032884,-500.0,0.00018993,2]
[357573081,1744185032894,-500.0,0.00018993,2]
[357573082,1744185032904,-500.0,0.00018993,2]
[357573083,1744185032914,-500.0,0.00018993,2]
[357573084,1744185032923,-500.0,0.00018993,2]
[357573085,1744185032934,-500.0,0.00018993,2]
[357573086,1744185032943,-643.49736053,0.00018993,2]
[357573087,1744185032953,-500.0,0.00018993,2]
[357573088,1744185032963,-500.0,0.00018993,2]
[357573089,1744185032972,-500.0,0.00018993,2]
[357573090,1744185032982,-500.0,0.00018993,2]
[357573091,1744185032991,-500.0,0.00018993,2]
[357573092,1744185033001,-500.0,0.00018993,2]
[357573093,1744185033010,-500.0,0.00018993,2]
[357573094,1744185033020,-500.0,0.00018993,2]
[357573095,1744185033030,-500.0,0.00018993,2]
[357573096,1744185033040,-22063.88516241,0.00018994,2]
[357573097,1744185033050,-174.75306288,0.00019,2]
[357573098,1744185033060,-934.81665563,0.00019,2]
[357573099,1744185033071,-300.0,0.00019,20]
[357573100,1744185033081,-1719.0,0.00019,2]
[357573101,1744185033091,-133285.62871198,0.00019,2]
[357573102,1744185033104,-1292.89790956,0.00019,2]
[357573103,1744185033115,-12672.41286817,0.00019,2]
[357573104,1744185033127,-939.52,0.00019,2]
[357573105,1744185033148,-22540.79404599,0.00019,2]
[357573107,1744185038535,-4367.44383622,0.00018992,3]
[357573108,1744185038545,-417.24564806,0.00018999,2]
[357573109,1744185038555,-17564.64572717,0.00019,2]
[357573125,1744185040755,-0.00165806,0.00019,2]
[357573126,1744185042000,-481.11725077,0.00019,2]
[357573159,1744185047458,-210.69165395,0.00018216,2]
[357573163,1744185612485,-175.2567,0.00018107,2]
[357573164,1744185630104,-151.0,0.00018107,2]
[357573165,1744185634414,-302.78657819,0.0001889,3]
[357573166,1744185655724,-190.95493405,0.00018107,2]
[357573167,1744185656790,-206.76618957,0.00018107,2]
[357573168,1744185661309,-195.25914762,0.00017889,2]
[357573169,1744185673614,-169.56636792,0.0001889,3]
[357573170,1744185692794,-347.90705389,0.0001889,3]
[357573171,1744185692943,-74.72278457,0.000189,3]
[357573172,1744185697750,-197.21342181,0.00017888,2]
[357573173,1744185722030,-500.0,0.00017889,2]
[357573174,1744185728962,-284.38949717,0.00017874,2]
[357573175,1744185730935,-156.72050417,0.00017874,2]
[357573176,1744185783970,-59.46476566,0.00017874,2]
[357573177,1744185783994,-144.29523434,0.00017888,2]
[357573178,1744185843601,-273.46169017,0.00017888,2]
[357573179,1744185903089,-203.5678,0.00017888,2]
[357573180,1744185907162,-96.4322,0.00017888,2]
[357573181,1744185907186,-63.5678,0.00017889,2]
[357573188,1744185963893,-202.461976,0.00017888,2]
[357573190,1744186040707,-250.0,0.00017788,2]
[357573200,1744186083946,-97.538024,0.00017888,2]
[357573201,1744186083973,-87.14528,0.00017888,2]
[357573202,1744186143711,-300.0,0.00017888,2]
[357573203,1744186203733,-182.80942083,0.00017888,2]
[357573208,1744186232348,-117.19057917,0.00017888,2]
[357573209,1744186232358,-16760.70919788,0.00017889,2]
[357573210,1744186232368,-70.1443459,0.00018107,2]
[357573211,1744186232378,-30.85409655,0.00018216,2]
[357573212,1744186232388,-250.0,0.0001886,2]
[357573213,1744186232397,-500.0,0.00018873,2]
[357573214,1744186232406,-502.17812462,0.00018873,2]
[357573215,1744186232415,-500.0,0.00018873,2]
[357573216,1744186232426,-500.0,0.00018873,2]
[357573217,1744186232435,-500.0,0.00018873,2]
[357573218,1744186232444,-500.0,0.00018873,2]
[357573219,1744186232455,-500.0,0.00018873,2]
[357573220,1744186232464,-500.0,0.00018873,2]
[357573221,1744186232474,-500.0,0.00018873,2]
[357573222,1744186232484,-500.0,0.00018873,2]
[357573223,1744186232494,-500.0,0.00018873,2]
[357573224,1744186232503,-501.47798235,0.00018873,2]
[357573225,1744186232513,-501.16661672,0.00018873,2]
[357573226,1744186232522,-500.0,0.00018873,2]
[357573227,1744186232532,-500.0,0.00018873,2]
[357573228,1744186232541,-500.0,0.00018873,2]
[357573229,1744186232550,-500.0,0.00018873,2]
[357573230,1744186232564,-170.01056398,0.00018873,2]
[357573231,1744186232574,-182.79671,0.00018879,2]
[357573232,1744186232584,-170.01056394,0.00018883,2]
[357573233,1744186232713,-159.52298791,0.00018889,2]
[357573234,1744186232724,-200.0,0.00018889,2]
[357573235,1744186232733,-184.12,0.0001889,3]
[357573236,1744186232743,-153.43,0.0001889,3]
[357573237,1744186232752,-170.01056394,0.00018893,2]
[357573238,1744186232762,-646.73885291,0.00018899,2]
[357573239,1744186232772,-5673.6924455,0.000189,2]
[357573240,1744186232782,-2146.36052583,0.000189,3]
[357573241,1744186232791,-104450.22016459,0.000189,2]
[357573244,1744186241068,-0.00369955,0.00018799,2]
[357573317,1744186246548,-667.41534925,0.00018799,2]
[357573319,1744186246559,-500.0,0.00018898,2]
[357573322,1744186246572,-500.0,0.00018898,2]
[357573323,1744186246582,-500.0,0.00018898,2]
[357573326,1744186246592,-500.0,0.00018898,2]
[357573328,1744186246603,-558.07937026,0.00018898,2]
[357573330,1744186246613,-500.0,0.00018898,2]
[357573332,1744186246623,-564.34973606,0.00018898,2]
[357573333,1744186246633,-328.76759643,0.00018898,2]
[357573335,1744186246644,-500.0,0.00018898,2]
[357573337,1744186246654,-500.0,0.00018898,2]
[357573339,1744186246664,-500.0,0.00018898,2]
[357573341,1744186246673,-500.0,0.00018898,2]
[357573343,1744186246683,-500.0,0.00018898,2]
[357573345,1744186246692,-500.0,0.00018898,2]
[357573347,1744186246702,-3912.57416119,0.000189,2]
[357573408,1744186249153,-227.91,0.00017788,2]
[357573409,1744186468697,-22.09,0.00017788,2]
[357573410,1744186468721,-227.91,0.00018802,2]
[357573423,1744186503167,-180.02160259,0.00018201,2]
[357573424,1744186503190,-69.97839741,0.00018802,2]
[357573463,1744186770833,-160.0,0.00026,30]
[357573464,1744186770865,-837.59699578,0.00026,30]
[357573465,1744186770897,-160.0,0.00026,30]
[357573466,1744186770929,-12533.84778573,0.00026,30]
[357573467,1744186770960,-375.08909701,0.00027,60]
[357573468,1744186770992,-242.47694177,0.00027195,120]
[357573469,1744186771032,-154.5,0.000284,31]
[357573470,1744186771066,-154.5,0.000284,31]
[357573471,1744186771100,-154.5,0.000284,31]
[357573472,1744186771134,-154.5,0.000284,31]
[357573473,1744186771168,-154.5,0.000284,31]
[357573474,1744186771202,-154.5,0.000284,31]
[357573475,1744186771358,-154.5,0.000284,31]
[357573476,1744186771391,-165413.88349096,0.0003,60]
[357573477,1744186771423,-10034.169977,0.0003,31]
[357573478,1744186771454,-480.02475,0.0003,120]
[357573479,1744186771485,-480.02475,0.0003,120]
[357573480,1744186771515,-500.0,0.0003,30]
[357573481,1744186771562,-160.0,0.0003,120]
[357573482,1744186771606,-7541.38621175,0.0003,120]
[357573483,1744186789912,-160.0,0.00017842,2]
[357573485,1744186821240,425.0,0.00025,120]
[357573488,1744186872367,-4992.46157398,0.0003,120]
[357573489,1744186886750,-153.0,0.00029233,30]
[357573490,1744186893936,-193.2661,0.00017787,2]
[357573492,1744186899978,-169.801801,0.00017784,2]
[357573493,1744186913709,-2919.0515967,0.00031,120]
[357573494,1744186913741,-100000.0,0.000317,120]
[357573495,1744186913776,-1000.0,0.00032,120]
[357573496,1744186913817,-209.0,0.00032,120]
[357573497,1744186913855,-419.56135214,0.00032,120]
[357573498,1744186913892,-154.5,0.000324,31]
[357573499,1744186913928,-154.5,0.000324,31]
[357573500,1744186913964,-154.5,0.000324,31]
[357573501,1744186913998,-154.5,0.000324,31]
[357573502,1744186914032,-154.5,0.000324,31]
[357573503,1744186914067,-154.5,0.000324,31]
[357573504,1744186914102,-154.5,0.000324,31]
[357573505,1744186914136,-154.5,0.000324,31]
[357573506,1744186914172,-154.5,0.000324,31]
[357573507,1744186914207,-154.5,0.000324,31]
[357573508,1744186914242,-154.5,0.000324,31]
[357573509,1744186914277,-154.5,0.000324,31]
[357573510,1744186914311,-154.5,0.000324,31]
[357573511,1744186914346,-154.5,0.000324,31]
[357573512,1744186914379,-640.77,0.000329,30]
[357573513,1744186914411,-2481.35,0.000329,30]
[357573514,1744186914448,-2130.43,0.000329,30]
[357573515,1744186914480,-188786.05,0.000329,30]
[357573516,1744186914512,-419.56135214,0.00033,30]
[357573517,1744186914543,-160.0,0.00033,30]
[357573518,1744186923245,-167.45536451,0.00017783,2]
[357573519,1744186961758,-647.04,0.000329,30]
[357573520,1744186961790,-837.59699578,0.00033,30]
[357573522,1744186971474,-647.04,0.000345,30]
[357573523,1744186971524,-188786.05,0.000346,30]
[357573524,1744186971581,-2130.43,0.000348,30]
[357573525,1744186973420,2631.07,0.000329,30]
[357573526,1744186974509,2631.07,0.000346,30]
[357573527,1744186982069,160.0,0.00033,30]
[357573528,1744186985101,-170.99077178,0.00017783,2]
[357573529,1744186994393,151028.84,0.000329,30]
[357573530,1744186995230,151028.84,0.000345,30]
[357573531,1744187005327,1719.08,0.000329,30]
[357573532,1744187006162,1719.08,0.000345,30]
[357573534,1744187044159,-177.00922822,0.00017783,2]
[357573535,1744187065944,2052.21382688,0.00035,30]
[357573545,1744187099907,-151.10456751,0.00017665,2]
[357573549,1744187127952,-360.471519,0.00017665,2]
[357573550,1744187133306,517.64,0.000329,30]
[357573551,1744187134167,120823.07,0.000329,30]
[357573552,1744187134209,517.64,0.000348,30]
[357573553,1744187134679,120823.07,0.000348,30]
[357573567,1744187166543,-169.56636792,0.00017665,2]
[357573568,1744187172905,2104.86,0.000329,30]
[357573569,1744187173392,2104.86,0.000346,30]
[357573574,1744187206663,1375.27,0.000329,30]
[357573575,1744187207160,1375.27,0.000346,30]
[357573576,1744187207578,152.04,0.000343,31]
[357573577,1744187207646,152.04,0.000343,31]
[357573578,1744187207696,152.04,0.000343,31]
[357573579,1744187207755,152.04,0.000343,31]
[357573580,1744187207969,152.04,0.000343,31]
[357573581,1744187224770,-283.4018133,0.00017488,2]
[357573582,1744187224794,-4.11471117,0.00017665,2]
[357573583,1744187224817,-12.48347553,0.00017753,2]
[357573599,1744187274336,107398.28,0.000329,30]
[357573600,1744187274858,107398.28,0.000346,30]
[357573601,1744187283673,-151.10456751,0.00017565,2]
[357573602,1744187283696,-29.63454109,0.00017753,2]
[357573603,1744187297224,180.7391086,0.00035,30]
[357573607,1744187333372,414.11,0.000329,30]
[357573608,1744187334034,414.11,0.000345,30]
[357573626,1744187341968,173.625077,0.00033908,30]
[357573633,1744187344767,-152.0,0.00017753,2]
[357573660,1744187353637,156.338568,0.00033908,30]
[357573663,1744187354585,156.338568,0.00033889,30]
[357573668,1744187356614,152.0,0.00035,30]
[357573686,1744187372949,1683.89,0.000329,30]
[357573687,1744187373455,1683.89,0.000345,30]
[357573694,1744187403504,-154.80629526,0.00017753,2]
[357573695,1744187406188,1100.21,0.000329,30]
[357573696,1744187407015,1100.21,0.000345,30]
[357573698,1744187415035,75178.8,0.000329,30]
[357573699,1744187415481,75178.8,0.000345,30]
[357573700,1744187415914,154.80629526,0.00035,30]
[357573708,1744187438775,-708.24728409,0.00017753,2]
[357573720,1744187440050,-158.56468884,0.00017753,2]
[357573780,1744187446949,-382.748628,0.00017753,2]
[357573784,1744187448321,-175.9051293,0.00017753,2]
[357573787,1744187484113,-168.96331788,0.00017753,2]
[357573790,1744187522983,-300.0,0.00017753,2]
[357573791,1744187532993,331.29,0.000329,30]
[357573792,1744187533487,331.29,0.000346,30]
[357573793,1744187555286,60143.04,0.000329,30]
[357573794,1744187555781,60143.04,0.000346,30]
[357573796,1744187572406,1347.11,0.000329,30]
[357573797,1744187572889,1347.11,0.000346,30]
[357573824,1744187584187,-107.74699521,0.00017753,2]
[357573825,1744187584211,-73.37025559,0.00017783,2]
[357573826,1744187606510,880.17,0.000329,30]
[357573827,1744187606976,880.17,0.000346,30]
[357573828,1744187632469,-153.88650192,0.00017595,2]
[357573836,1744187643713,-47.82767928,0.00017595,2]
[357573837,1744187643738,-107.23773946,0.00017783,2]
[357573838,1744187652238,155.06541874,0.00035,30]
[357573839,1744187657438,17000.0,0.00035,30]
[357573840,1744187694529,53460.48,0.000329,30]
[357573841,1744187695390,53460.48,0.000347,30]
[357573844,1744187703504,-158.56468884,0.00017683,2]
[357573845,1744187705268,-168.60478842,0.00017783,2]
[357573846,1744187732673,265.03,0.000329,30]
[357573847,1744187733549,265.03,0.000346,30]
[357573848,1744187765154,-175.9051293,0.00017783,2]
[357573849,1744187768177,2245.0,0.00035,30]
[357573850,1744187772227,1077.69,0.000329,30]
[357573851,1744187772750,1077.69,0.000346,30]
[357573852,1744187806200,704.14,0.000329,30]
[357573853,1744187806465,704.14,0.000346,30]
[357573854,1744187814048,152.05,0.000343,31]
[357573855,1744187814107,152.05,0.000343,31]
[357573856,1744187814172,152.05,0.000343,31]
[357573857,1744187814232,152.05,0.000343,31]
[357573858,1744187824190,-175.9051293,0.00017605,2]
[357573859,1744187824213,-47.47783995,0.00017783,2]
[357573860,1744187833777,37422.33,0.000329,30]
[357573861,1744187834246,37422.33,0.000346,30]
[357573863,1744187885110,-161.10924802,0.00017683,2]
[357573864,1744187885136,-64.36639098,0.00017783,2]
[357573865,1744187933660,212.02,0.000329,30]
[357573866,1744187934157,212.02,0.000346,30]
[357573867,1744187943122,-250.0,0.00017683,2]
[357573868,1744187943148,-2.40812011,0.00017783,2]
[357573871,1744187972913,29937.87,0.000329,30]
[357573872,1744187973180,862.15,0.000329,30]
[357573873,1744187973527,862.15,0.000346,30]
[357573874,1744187973844,29937.87,0.000346,30]
[357573875,1744187993776,29245.07313752,0.00035,30]
[357573877,1744188006683,-270.05515721,0.00017783,2]
[357573878,1744188012315,-29.94484279,0.00017783,2]
[357573879,1744188012339,-246.60455311,0.00017784,2]
[357573880,1744188039478,-159.16406926,0.00017583,2]
[357573886,1744188065093,-90.83593074,0.00017583,2]
[357573887,1744188065117,-128.34391345,0.00017783,2]
[357573889,1744188122956,-300.0,0.00017783,2]
[357573890,1744188133927,-360.471519,0.00017441,2]
[357573891,1744188140918,-444.80747689,0.00017489,2]
[357573892,1744188183244,-164.24057411,0.00017489,2]
[357573893,1744188183271,-85.75942589,0.00017683,2]
[357573894,1744188184912,-164.24057411,0.00017683,2]
[357573895,1744188184936,-86.66484649,0.00017783,2]
[357573897,1744188202074,-300.0,0.00017407,2]
[357573901,1744188244452,-243.8844498,0.00017406,2]
[357573903,1744188279131,-56.1155502,0.00017406,2]
[357573904,1744188279155,-152.394547,0.00017407,2]
[357573905,1744188305223,-155.0,0.00017406,2]
[357573906,1744188367490,-224.52615328,0.00017227,2]
[357573907,1744188403330,-186.90510313,0.00017227,2]
[357573910,1744188408987,-191.90544578,0.00017227,2]